[Event "*** Titled Tuesday Blitz"]
[Site "Chess.com"]
[Date "2020.11.03"]
[Round "2"]
[White "H3nriqueTV"]
[Black "Rakesh"]
[Result "0-1"]
[WhiteElo "2280"]
[BlackElo "2461"]
[TimeControl "180+1"]
[EndTime "10:18:04 PST"]
[Termination "Rakesh won by resignation"]

1. e4 {[%clk 0:03:00.9]} 1... c5 {[%clk 0:03:00.1]} 2. Nf3 {[%clk 0:03:00.2]}
2... e6 {[%clk 0:03:00.6]} 3. b3 {[%clk 0:03:00.2]} 3... Nc6 {[%clk 0:03:00.6]}
4. Bb2 {[%clk 0:03:00.2]} 4... a6 {[%clk 0:03:01.5]} 5. Nc3 {[%clk 0:02:58.1]}
5... d5 {[%clk 0:03:01.8]} 6. exd5 {[%clk 0:02:57.9]} 6... exd5 {[%clk
0:03:02.7]} 7. d4 {[%clk 0:02:58.6]} 7... Nf6 {[%clk 0:03:03.6]} 8. dxc5 {[%clk
0:02:56.5]} 8... Bxc5 {[%clk 0:03:04.5]} 9. Bd3 {[%clk 0:02:57.1]} 9... O-O
{[%clk 0:03:04.5]} 10. O-O {[%clk 0:02:57.1]} 10... Bg4 {[%clk 0:03:04.1]} 11.
h3 {[%clk 0:02:37.3]} 11... Bh5 {[%clk 0:03:01.9]} 12. Be2 {[%clk 0:02:33.8]}
12... Rc8 {[%clk 0:02:56.2]} 13. Nh4 {[%clk 0:02:21.8]} 13... Bxe2 {[%clk
0:02:54.1]} 14. Qxe2 {[%clk 0:02:22]} 14... d4 {[%clk 0:02:54.2]} 15. Na4 {[%clk
0:02:20.9]} 15... Re8 {[%clk 0:02:47.4]} 16. Qd1 {[%clk 0:02:08.9]} 16... Ba7
{[%clk 0:02:44.1]} 17. Bc1 {[%clk 0:01:54.1]} 17... Ne4 {[%clk 0:02:38.9]} 18.
Qg4 {[%clk 0:01:38]} 18... Nb4 {[%clk 0:02:20.3]} 19. Nf5 {[%clk 0:01:20.5]}
19... g6 {[%clk 0:02:11]} 20. Bb2 {[%clk 0:00:52.9]} 20... h5 {[%clk 0:01:54.2]}
21. Nh6+ {[%clk 0:00:53]} 21... Kg7 {[%clk 0:01:52.2]} 22. Qf4 {[%clk
0:00:53.5]} 22... Qf6 {[%clk 0:01:48.3]} 23. Qxf6+ {[%clk 0:00:39]} 23... Nxf6
{[%clk 0:01:49.2]} 24. Bc1 {[%clk 0:00:37.3]} 24... Nxc2 {[%clk 0:01:44.4]} 25.
Rb1 {[%clk 0:00:37]} 25... d3 {[%clk 0:01:45]} 26. g4 {[%clk 0:00:36]} 26... Nd4
{[%clk 0:01:39.1]} 27. g5 {[%clk 0:00:35.7]} 27... Ne4 {[%clk 0:01:35.1]} 28. f4
{[%clk 0:00:28.7]} 28... Ne2+ {[%clk 0:01:28.8]} 29. Kg2 {[%clk 0:00:28.3]}
29... Nxc1 {[%clk 0:01:27.3]} 30. Rbxc1 {[%clk 0:00:28.4]} 30... Rxc1 {[%clk
0:01:25.2]} 31. Rxc1 {[%clk 0:00:29.3]} 31... d2 {[%clk 0:01:25.7]} 32. Rd1
{[%clk 0:00:29.6]} 32... b5 {[%clk 0:01:16.1]} 33. Nb2 {[%clk 0:00:25.9]} 33...
Be3 {[%clk 0:01:13.4]} 34. Kf3 {[%clk 0:00:19]} 34... Nc3 {[%clk 0:01:11.9]} 35.
h4 {[%clk 0:00:19]} 35... Nxd1 {[%clk 0:01:10.5]} 36. Nxd1 {[%clk 0:00:19.2]}
36... Bd4 {[%clk 0:01:11.2]} 37. f5 {[%clk 0:00:19.2]} 37... Re1 {[%clk
0:01:09.7]} 38. f6+ {[%clk 0:00:19.1]} 38... Bxf6 {[%clk 0:01:05.3]} 39. gxf6+
{[%clk 0:00:19.1]} 39... Kxh6 {[%clk 0:01:06.1]} 0-1

[Event "*** Titled Tuesday Blitz"]
[Site "Chess.com"]
[Date "2020.11.03"]
[Round "2"]
[White "PotapovaM"]
[Black "VladaSviridova"]
[Result "1-0"]
[WhiteElo "2601"]
[BlackElo "2301"]
[TimeControl "180+1"]
[EndTime "10:18:08 PST"]
[Termination "PotapovaM won on time"]

1. e4 {[%clk 0:03:00.9]} 1... e6 {[%clk 0:02:59.4]} 2. Nf3 {[%clk 0:02:58.8]}
2... d5 {[%clk 0:02:59.8]} 3. d3 {[%clk 0:02:59]} 3... Nf6 {[%clk 0:02:57.5]} 4.
Nbd2 {[%clk 0:02:54.3]} 4... c5 {[%clk 0:02:56.2]} 5. g3 {[%clk 0:02:53.3]} 5...
g6 {[%clk 0:02:56.4]} 6. Bg2 {[%clk 0:02:53.5]} 6... Bg7 {[%clk 0:02:57]} 7. O-O
{[%clk 0:02:54.1]} 7... O-O {[%clk 0:02:57.3]} 8. Re1 {[%clk 0:02:50.1]} 8...
Nc6 {[%clk 0:02:56.7]} 9. c3 {[%clk 0:02:48.5]} 9... a5 {[%clk 0:02:51.3]} 10.
a4 {[%clk 0:02:46]} 10... b6 {[%clk 0:02:49.7]} 11. e5 {[%clk 0:02:41]} 11...
Nd7 {[%clk 0:02:49.3]} 12. d4 {[%clk 0:02:40.7]} 12... cxd4 {[%clk 0:02:48.8]}
13. cxd4 {[%clk 0:02:40.6]} 13... Ba6 {[%clk 0:02:48.3]} 14. Nf1 {[%clk
0:02:41]} 14... h6 {[%clk 0:02:47.2]} 15. Ne3 {[%clk 0:02:40.5]} 15... h5 {[%clk
0:02:24.6]} 16. Bd2 {[%clk 0:02:34.3]} 16... Rc8 {[%clk 0:02:18.8]} 17. h3
{[%clk 0:02:25.3]} 17... f5 {[%clk 0:02:04.4]} 18. Nc2 {[%clk 0:01:47.8]} 18...
Qe8 {[%clk 0:01:41.3]} 19. Ng5 {[%clk 0:01:46.3]} 19... Qe7 {[%clk 0:01:27.4]}
20. Bf4 {[%clk 0:01:41.5]} 20... Rfe8 {[%clk 0:01:21.1]} 21. g4 {[%clk
0:01:35.8]} 21... hxg4 {[%clk 0:01:18.5]} 22. hxg4 {[%clk 0:01:36]} 22... Nb4
{[%clk 0:01:16.7]} 23. Nxb4 {[%clk 0:01:31.6]} 23... Qxb4 {[%clk 0:01:13.4]} 24.
gxf5 {[%clk 0:01:31.7]} 24... exf5 {[%clk 0:00:23.4]} 25. Bxd5+ {[%clk 0:01:31]}
25... Kf8 {[%clk 0:00:16.5]} 26. Nh7+ {[%clk 0:01:30.6]} 26... Ke7 {[%clk
0:00:12.3]} 27. Bg5+ {[%clk 0:01:31.5]} 27... Nf6 {[%clk 0:00:11.4]} 28. exf6+
{[%clk 0:01:32]} 28... Kd6 {[%clk 0:00:11.4]} 29. Rxe8 {[%clk 0:01:23.1]} 29...
Rxe8 {[%clk 0:00:10.2]} 30. Qf3 {[%clk 0:01:10.4]} 30... Be2 {[%clk 0:00:06.8]}
31. Bf4+ {[%clk 0:01:05.4]} 31... Kd7 {[%clk 0:00:06]} 32. Bc6+ {[%clk
0:01:04.3]} 32... Kd8 {[%clk 0:00:06.2]} 33. Qd5+ {[%clk 0:01:04.2]} 1-0

[Event "*** Titled Tuesday Blitz"]
[Site "Chess.com"]
[Date "2020.11.03"]
[Round "2"]
[White "ShahMatKanal"]
[Black "Alexsur1981"]
[Result "0-1"]
[WhiteElo "2508"]
[BlackElo "2778"]
[TimeControl "180+1"]
[EndTime "10:18:09 PST"]
[Termination "Alexsur1981 won on time"]

1. d4 {[%clk 0:03:00.9]} 1... d5 {[%clk 0:02:58.1]} 2. c4 {[%clk 0:02:58.6]}
2... e6 {[%clk 0:02:57.5]} 3. cxd5 {[%clk 0:02:57.4]} 3... exd5 {[%clk
0:02:58.4]} 4. Nc3 {[%clk 0:02:57.3]} 4... c6 {[%clk 0:02:58.8]} 5. Bf4 {[%clk
0:02:56.5]} 5... Bd6 {[%clk 0:02:58.3]} 6. Bxd6 {[%clk 0:02:53.1]} 6... Qxd6
{[%clk 0:02:59.2]} 7. e3 {[%clk 0:02:53.7]} 7... Bf5 {[%clk 0:02:59.4]} 8. Bd3
{[%clk 0:02:53.3]} 8... Bxd3 {[%clk 0:02:59.5]} 9. Qxd3 {[%clk 0:02:54.2]} 9...
Nf6 {[%clk 0:03:00.1]} 10. Nge2 {[%clk 0:02:54.4]} 10... O-O {[%clk 0:02:59.3]}
11. O-O {[%clk 0:02:54.9]} 11... Re8 {[%clk 0:02:58.5]} 12. Qc2 {[%clk 0:02:46]}
12... Nbd7 {[%clk 0:02:52.7]} 13. Rab1 {[%clk 0:02:38.9]} 13... a5 {[%clk
0:02:49.6]} 14. Rfc1 {[%clk 0:02:33.4]} 14... g6 {[%clk 0:02:44.4]} 15. a3
{[%clk 0:02:23.4]} 15... Ng4 {[%clk 0:02:41.5]} 16. Ng3 {[%clk 0:02:19.1]} 16...
h5 {[%clk 0:02:38.4]} 17. Nf1 {[%clk 0:02:08.6]} 17... f5 {[%clk 0:02:31.5]} 18.
h3 {[%clk 0:02:04.1]} 18... Ngf6 {[%clk 0:02:30.9]} 19. b4 {[%clk 0:01:57.1]}
19... axb4 {[%clk 0:02:30.5]} 20. axb4 {[%clk 0:01:58]} 20... b5 {[%clk
0:02:30.3]} 21. Ne2 {[%clk 0:01:53.7]} 21... Ra6 {[%clk 0:02:30.4]} 22. Nf4
{[%clk 0:01:51.6]} 22... Kf7 {[%clk 0:02:29.7]} 23. Ng3 {[%clk 0:01:30]} 23...
h4 {[%clk 0:02:22.3]} 24. Nge2 {[%clk 0:01:12.4]} 24... Ne4 {[%clk 0:02:15.9]}
25. Nd3 {[%clk 0:01:10.1]} 25... Qe7 {[%clk 0:01:54.6]} 26. Ra1 {[%clk
0:00:56.1]} 26... Rea8 {[%clk 0:01:52.7]} 27. Rxa6 {[%clk 0:00:55.7]} 27... Rxa6
{[%clk 0:01:53.6]} 28. Qb2 {[%clk 0:00:48.8]} 28... Qf8 {[%clk 0:01:45.7]} 29.
Ra1 {[%clk 0:00:48.2]} 29... Qa8 {[%clk 0:01:46.2]} 30. Rxa6 {[%clk 0:00:47.4]}
30... Qxa6 {[%clk 0:01:47.1]} 31. f3 {[%clk 0:00:45.5]} 31... Nd6 {[%clk
0:01:45.7]} 32. Nc5 {[%clk 0:00:40.7]} 32... Nc4 {[%clk 0:01:37.2]} 33. Nxa6
{[%clk 0:00:29.1]} 33... Nxb2 {[%clk 0:01:37.2]} 34. Kf2 {[%clk 0:00:26.4]}
34... Nd1+ {[%clk 0:01:36.5]} 35. Ke1 {[%clk 0:00:18.5]} 35... Nxe3 {[%clk
0:01:37.4]} 36. Kf2 {[%clk 0:00:13.9]} 36... Nc2 {[%clk 0:01:37.3]} 37. g3
{[%clk 0:00:11.6]} 37... hxg3+ {[%clk 0:01:36.7]} 38. Kxg3 {[%clk 0:00:12.5]}
38... Nf8 {[%clk 0:01:32.7]} 39. Kf4 {[%clk 0:00:06.9]} 39... Kf6 {[%clk
0:01:31.5]} 40. Nb8 {[%clk 0:00:02.9]} 40... Ne6+ {[%clk 0:01:30.6]} 41. Kg3
{[%clk 0:00:02.8]} 41... Nxb4 {[%clk 0:01:29.8]} 42. Nf4 {[%clk 0:00:02.1]}
42... Nxd4 {[%clk 0:01:25.7]} 0-1

[Event "*** Titled Tuesday Blitz"]
[Site "Chess.com"]
[Date "2020.11.03"]
[Round "2"]
[White "tteshan"]
[Black "enriquebutti"]
[Result "1-0"]
[WhiteElo "2371"]
[BlackElo "1974"]
[TimeControl "180+1"]
[EndTime "10:18:10 PST"]
[Termination "tteshan won by checkmate"]

1. e4 {[%clk 0:03:00.9]} 1... d5 {[%clk 0:02:59.8]} 2. exd5 {[%clk 0:03:00.6]}
2... Qxd5 {[%clk 0:03:00.7]} 3. Nc3 {[%clk 0:03:00.9]} 3... Qd6 {[%clk
0:03:01.2]} 4. d4 {[%clk 0:03:01.4]} 4... Nf6 {[%clk 0:03:01.2]} 5. Bd3 {[%clk
0:02:58.7]} 5... a6 {[%clk 0:03:01.2]} 6. Nge2 {[%clk 0:02:58.6]} 6... e6 {[%clk
0:03:00.9]} 7. Bf4 {[%clk 0:02:57]} 7... Qd8 {[%clk 0:03:00.8]} 8. Qd2 {[%clk
0:02:54.5]} 8... Bd6 {[%clk 0:03:01.1]} 9. Bg5 {[%clk 0:02:53.7]} 9... Nbd7
{[%clk 0:02:59.9]} 10. Ne4 {[%clk 0:02:45.9]} 10... Be7 {[%clk 0:02:58.4]} 11.
Bf4 {[%clk 0:02:35.9]} 11... Nd5 {[%clk 0:02:56.9]} 12. Bg3 {[%clk 0:02:34.3]}
12... b5 {[%clk 0:02:57.1]} 13. O-O-O {[%clk 0:02:29.5]} 13... Bb7 {[%clk
0:02:52.6]} 14. Kb1 {[%clk 0:02:25.7]} 14... Rc8 {[%clk 0:02:49.8]} 15. h4
{[%clk 0:02:19.1]} 15... c5 {[%clk 0:02:48.4]} 16. dxc5 {[%clk 0:02:12.4]} 16...
Nxc5 {[%clk 0:02:47.1]} 17. Nxc5 {[%clk 0:02:12.2]} 17... Bxc5 {[%clk
0:02:44.4]} 18. Nf4 {[%clk 0:01:55.7]} 18... Bb4 {[%clk 0:02:24.8]} 19. Qe2
{[%clk 0:01:50.4]} 19... O-O {[%clk 0:02:08.8]} 20. h5 {[%clk 0:01:10.7]} 20...
Qa5 {[%clk 0:01:54]} 21. h6 {[%clk 0:01:00]} 21... Nc3+ {[%clk 0:01:33.9]} 22.
bxc3 {[%clk 0:00:57.7]} 22... Bxc3 {[%clk 0:01:34.8]} 23. Bxh7+ {[%clk
0:00:41.8]} 23... Kh8 {[%clk 0:01:07.7]} 24. hxg7+ {[%clk 0:00:41.6]} 24... Kxg7
{[%clk 0:01:06.7]} 25. Qg4+ {[%clk 0:00:39.6]} 25... Kf6 {[%clk 0:00:56.9]} 26.
Bh4+ {[%clk 0:00:22.6]} 26... Ke5 {[%clk 0:00:56.7]} 27. Qg5+ {[%clk 0:00:16.1]}
27... f5 {[%clk 0:00:44.7]} 28. Ng6+ {[%clk 0:00:16]} 28... Ke4 {[%clk
0:00:41.8]} 29. Qf4# {[%clk 0:00:15.9]} 1-0

[Event "*** Titled Tuesday Blitz"]
[Site "Chess.com"]
[Date "2020.11.03"]
[Round "2"]
[White "AnishOnYoutube"]
[Black "Korchmar_Vasiliy"]
[Result "1-0"]
[WhiteElo "2963"]
[BlackElo "2615"]
[TimeControl "180+1"]
[EndTime "10:18:18 PST"]
[Termination "AnishOnYoutube won on time"]

1. e4 {[%clk 0:03:00.9]} 1... c5 {[%clk 0:02:58.7]} 2. Nf3 {[%clk 0:03:01.2]}
2... d6 {[%clk 0:02:58.6]} 3. d4 {[%clk 0:03:01.4]} 3... cxd4 {[%clk 0:02:59.5]}
4. Nxd4 {[%clk 0:03:01.9]} 4... Nf6 {[%clk 0:02:59.9]} 5. Nc3 {[%clk 0:03:02.5]}
5... Nc6 {[%clk 0:03:00.2]} 6. Bg5 {[%clk 0:03:01.5]} 6... e6 {[%clk 0:02:59.8]}
7. Qd3 {[%clk 0:02:59.6]} 7... Be7 {[%clk 0:02:57.8]} 8. O-O-O {[%clk
0:02:53.5]} 8... O-O {[%clk 0:02:56]} 9. f4 {[%clk 0:02:46.3]} 9... Nxd4 {[%clk
0:02:27.6]} 10. Qxd4 {[%clk 0:02:46.6]} 10... Qa5 {[%clk 0:02:28]} 11. e5 {[%clk
0:02:20.9]} 11... dxe5 {[%clk 0:02:21.5]} 12. Qxe5 {[%clk 0:02:20.9]} 12... Qxe5
{[%clk 0:01:43]} 13. fxe5 {[%clk 0:02:21.1]} 13... Nd5 {[%clk 0:01:43.4]} 14.
Bxe7 {[%clk 0:02:21.2]} 14... Nxe7 {[%clk 0:01:44.3]} 15. Bd3 {[%clk 0:02:20.8]}
15... a6 {[%clk 0:01:09.1]} 16. Rhe1 {[%clk 0:02:00]} 16... Nc6 {[%clk
0:01:04.2]} 17. Na4 {[%clk 0:01:48.3]} 17... b5 {[%clk 0:00:34.5]} 18. Be4
{[%clk 0:01:47.9]} 18... bxa4 {[%clk 0:00:25.7]} 19. Bxc6 {[%clk 0:01:48.1]}
19... Rb8 {[%clk 0:00:26.2]} 20. Bxa4 {[%clk 0:01:48.3]} 20... Bb7 {[%clk
0:00:26.7]} 21. g3 {[%clk 0:01:40.7]} 21... Rfc8 {[%clk 0:00:16.3]} 22. Rd7
{[%clk 0:01:31.1]} 22... Bd5 {[%clk 0:00:15.5]} 23. Rf1 {[%clk 0:01:31.6]} 23...
Rb4 {[%clk 0:00:05.7]} 24. Bb3 {[%clk 0:01:25.7]} 24... Bxb3 {[%clk 0:00:03.6]}
25. axb3 {[%clk 0:01:26.6]} 25... Rf8 {[%clk 0:00:02.4]} 26. Ra7 {[%clk
0:01:15.2]} 26... Re4 {[%clk 0:00:02.2]} 27. Rxa6 {[%clk 0:01:14.9]} 27... Rxe5
{[%clk 0:00:02.7]} 28. Rf2 {[%clk 0:01:11]} 28... Rd8 {[%clk 0:00:02]} 29. c4
{[%clk 0:01:10.5]} 29... Re1+ {[%clk 0:00:02]} 30. Kc2 {[%clk 0:01:10.4]} 30...
f5 {[%clk 0:00:02.5]} 31. b4 {[%clk 0:01:08.1]} 31... Rd4 {[%clk 0:00:01.6]} 32.
Rc6 {[%clk 0:01:05.5]} 32... Kf7 {[%clk 0:00:01.3]} 33. b5 {[%clk 0:01:00.5]}
33... Ree4 {[%clk 0:00:01.5]} 34. Rc7+ {[%clk 0:00:54.5]} 34... Kf6 {[%clk
0:00:01.5]} 35. Kc3 {[%clk 0:00:55.1]} 1-0

[Event "*** Titled Tuesday Blitz"]
[Site "Chess.com"]
[Date "2020.11.03"]
[Round "2"]
[White "hansen"]
[Black "Airquake"]
[Result "1-0"]
[WhiteElo "2942"]
[BlackElo "2603"]
[TimeControl "180+1"]
[EndTime "10:18:18 PST"]
[Termination "hansen won by checkmate"]

1. e4 {[%clk 0:03:00.9]} 1... c5 {[%clk 0:02:49.9]} 2. Nf3 {[%clk 0:02:54.9]}
2... d6 {[%clk 0:02:49.7]} 3. d4 {[%clk 0:02:54.6]} 3... cxd4 {[%clk 0:02:50]}
4. Nxd4 {[%clk 0:02:55.5]} 4... Nf6 {[%clk 0:02:49.5]} 5. Nc3 {[%clk 0:02:55.9]}
5... a6 {[%clk 0:02:49.5]} 6. Be2 {[%clk 0:02:56.2]} 6... e5 {[%clk 0:02:48.9]}
7. Nb3 {[%clk 0:02:56]} 7... Be7 {[%clk 0:02:49.2]} 8. O-O {[%clk 0:02:56.3]}
8... O-O {[%clk 0:02:49.9]} 9. Re1 {[%clk 0:02:56.2]} 9... Be6 {[%clk
0:02:47.3]} 10. Bf3 {[%clk 0:02:55.4]} 10... Nbd7 {[%clk 0:02:46.4]} 11. a4
{[%clk 0:02:55.7]} 11... Rc8 {[%clk 0:02:43.5]} 12. Nd2 {[%clk 0:02:55.9]} 12...
Nb6 {[%clk 0:02:32.9]} 13. a5 {[%clk 0:02:53.7]} 13... Nc4 {[%clk 0:02:20.5]}
14. Nxc4 {[%clk 0:02:54]} 14... Bxc4 {[%clk 0:02:19.5]} 15. Be3 {[%clk
0:02:52.4]} 15... Be6 {[%clk 0:02:14.9]} 16. Qd2 {[%clk 0:02:51.5]} 16... Nd7
{[%clk 0:02:10.4]} 17. Na4 {[%clk 0:02:48.1]} 17... Qc7 {[%clk 0:02:04.4]} 18.
Rec1 {[%clk 0:02:42.8]} 18... f5 {[%clk 0:01:42.9]} 19. exf5 {[%clk 0:02:40.5]}
19... Rxf5 {[%clk 0:01:42.4]} 20. Be4 {[%clk 0:02:38.8]} 20... Rf7 {[%clk
0:01:41.5]} 21. c4 {[%clk 0:02:23.4]} 21... Nf6 {[%clk 0:01:27.1]} 22. Bd5
{[%clk 0:02:23.7]} 22... Bxd5 {[%clk 0:01:14.8]} 23. cxd5 {[%clk 0:02:23.8]}
23... Qd8 {[%clk 0:01:11.8]} 24. Nb6 {[%clk 0:02:23.9]} 24... Rb8 {[%clk
0:01:09.1]} 25. h3 {[%clk 0:02:21.6]} 25... Nd7 {[%clk 0:01:04.8]} 26. Rc4
{[%clk 0:02:18.2]} 26... Nxb6 {[%clk 0:01:02.5]} 27. axb6 {[%clk 0:02:18.5]}
27... Qd7 {[%clk 0:01:01.4]} 28. Rac1 {[%clk 0:02:11.9]} 28... Qb5 {[%clk
0:00:55.1]} 29. Rc7 {[%clk 0:01:43.8]} 29... Bf8 {[%clk 0:00:40.3]} 30. Rxf7
{[%clk 0:01:20.3]} 30... Kxf7 {[%clk 0:00:40.1]} 31. Rc7+ {[%clk 0:01:21.2]}
31... Kg8 {[%clk 0:00:40.8]} 32. h4 {[%clk 0:00:46.9]} 32... h6 {[%clk
0:00:30.4]} 33. Bxh6 {[%clk 0:00:39.3]} 33... gxh6 {[%clk 0:00:14.9]} 34. Qc2
{[%clk 0:00:38]} 34... Qxd5 {[%clk 0:00:13.4]} 35. Qh7# {[%clk 0:00:36.8]} 1-0

[Event "*** Titled Tuesday Blitz"]
[Site "Chess.com"]
[Date "2020.11.03"]
[Round "2"]
[White "dosto07"]
[Black "Orange_Ghost"]
[Result "0-1"]
[WhiteElo "2350"]
[BlackElo "2811"]
[TimeControl "180+1"]
[EndTime "10:18:18 PST"]
[Termination "Orange_Ghost won by resignation"]

1. e4 {[%clk 0:03:00.9]} 1... e6 {[%clk 0:02:59.1]} 2. d4 {[%clk 0:02:59.4]}
2... d5 {[%clk 0:02:59.7]} 3. Nd2 {[%clk 0:02:58.1]} 3... c5 {[%clk 0:02:59.7]}
4. exd5 {[%clk 0:02:54.8]} 4... exd5 {[%clk 0:03:00.6]} 5. Ngf3 {[%clk 0:02:55]}
5... Nc6 {[%clk 0:03:01.2]} 6. Bb5 {[%clk 0:02:55]} 6... Qe7+ {[%clk 0:03:01.6]}
7. Qe2 {[%clk 0:02:51.6]} 7... Qxe2+ {[%clk 0:03:01.6]} 8. Kxe2 {[%clk
0:02:50.9]} 8... a6 {[%clk 0:03:00.8]} 9. Bxc6+ {[%clk 0:02:45]} 9... bxc6
{[%clk 0:03:01.7]} 10. dxc5 {[%clk 0:02:44.6]} 10... Bxc5 {[%clk 0:03:02.6]} 11.
Nb3 {[%clk 0:02:44.2]} 11... Bd6 {[%clk 0:03:03.2]} 12. Be3 {[%clk 0:02:41.8]}
12... Ne7 {[%clk 0:03:03.7]} 13. Bc5 {[%clk 0:02:40.6]} 13... Kd7 {[%clk
0:03:04]} 14. Nfd4 {[%clk 0:02:02.1]} 14... a5 {[%clk 0:02:59.1]} 15. a4 {[%clk
0:02:01.4]} 15... Rb8 {[%clk 0:02:39.6]} 16. Bxd6 {[%clk 0:01:48.8]} 16... Kxd6
{[%clk 0:02:40.5]} 17. Nxa5 {[%clk 0:01:36.7]} 17... Ba6+ {[%clk 0:02:35.9]} 18.
Kf3 {[%clk 0:01:35]} 18... c5 {[%clk 0:02:36.8]} 19. Nb5+ {[%clk 0:01:24.3]}
19... Bxb5 {[%clk 0:02:36.7]} 20. axb5 {[%clk 0:01:24.7]} 20... Rxb5 {[%clk
0:02:37.6]} 21. Nb3 {[%clk 0:01:22.3]} 21... Nc6 {[%clk 0:02:31.7]} 22. Ra6
{[%clk 0:01:19.9]} 22... Kc7 {[%clk 0:02:24.1]} 23. Rd1 {[%clk 0:01:18.3]} 23...
Rd8 {[%clk 0:02:21.2]} 24. Rda1 {[%clk 0:01:09.7]} 24... c4 {[%clk 0:02:17.8]}
25. Rxc6+ {[%clk 0:01:08]} 25... Kxc6 {[%clk 0:02:17.2]} 26. Nd4+ {[%clk
0:01:08.9]} 26... Kc5 {[%clk 0:02:17]} 27. Nxb5 {[%clk 0:01:09.8]} 27... Kxb5
{[%clk 0:02:17.9]} 28. Ra7 {[%clk 0:01:07.8]} 28... d4 {[%clk 0:02:15]} 29. Ke2
{[%clk 0:01:06.3]} 29... Rf8 {[%clk 0:02:06.3]} 30. Rd7 {[%clk 0:00:58.9]} 30...
Kc5 {[%clk 0:02:06.6]} 31. Kd2 {[%clk 0:00:57.9]} 31... h5 {[%clk 0:02:04.8]}
32. f4 {[%clk 0:00:57.4]} 32... g6 {[%clk 0:02:04.3]} 33. g3 {[%clk 0:00:56.2]}
33... f5 {[%clk 0:01:56.8]} 34. Rc7+ {[%clk 0:00:54.3]} 34... Kd5 {[%clk
0:01:56.6]} 35. Re7 {[%clk 0:00:41.4]} 35... Rf6 {[%clk 0:01:56]} 36. Ke2 {[%clk
0:00:30.2]} 36... Rb6 {[%clk 0:01:54.5]} 37. Rd7+ {[%clk 0:00:27.7]} 37... Kc5
{[%clk 0:01:53.2]} 38. Rc7+ {[%clk 0:00:27]} 38... Kb5 {[%clk 0:01:44.9]} 39.
Kd2 {[%clk 0:00:24.5]} 39... Rd6 {[%clk 0:01:42.4]} 40. Rb7+ {[%clk 0:00:22]}
40... Kc5 {[%clk 0:01:42.3]} 41. Rc7+ {[%clk 0:00:21.9]} 41... Kd5 {[%clk
0:01:42.9]} 42. Re7 {[%clk 0:00:21.9]} 42... Rb6 {[%clk 0:01:38.3]} 43. Rd7+
{[%clk 0:00:21.6]} 43... Ke4 {[%clk 0:01:34.9]} 44. Rd8 {[%clk 0:00:15.6]} 44...
Rxb2 {[%clk 0:01:33.2]} 45. Re8+ {[%clk 0:00:12.5]} 45... Kf3 {[%clk 0:01:33.4]}
46. Kc1 {[%clk 0:00:09.1]} 46... Ra2 {[%clk 0:01:24]} 47. Rd8 {[%clk 0:00:08.7]}
47... c3 {[%clk 0:01:19.6]} 0-1

[Event "*** Titled Tuesday Blitz"]
[Site "Chess.com"]
[Date "2020.11.03"]
[Round "2"]
[White "Blitzstream"]
[Black "jacky72"]
[Result "0-1"]
[WhiteElo "2772"]
[BlackElo "2528"]
[TimeControl "180+1"]
[EndTime "10:18:19 PST"]
[Termination "jacky72 won by resignation"]

1. d4 {[%clk 0:03:00.9]} 1... Nf6 {[%clk 0:02:59.7]} 2. Bg5 {[%clk 0:03:00.4]}
2... Ne4 {[%clk 0:02:59.5]} 3. Bh4 {[%clk 0:03:00.5]} 3... d5 {[%clk 0:02:54.2]}
4. f3 {[%clk 0:03:00.8]} 4... Nf6 {[%clk 0:02:54.1]} 5. Nc3 {[%clk 0:03:00.7]}
5... Bf5 {[%clk 0:02:53.1]} 6. e3 {[%clk 0:02:40.5]} 6... Bg6 {[%clk 0:02:48.4]}
7. Bd3 {[%clk 0:02:39.8]} 7... e6 {[%clk 0:02:47.7]} 8. f4 {[%clk 0:02:39.7]}
8... Be7 {[%clk 0:02:44]} 9. Nf3 {[%clk 0:02:39.2]} 9... c5 {[%clk 0:02:43.9]}
10. O-O {[%clk 0:02:32.9]} 10... c4 {[%clk 0:02:43.3]} 11. Bxg6 {[%clk 0:02:32]}
11... hxg6 {[%clk 0:02:44.2]} 12. Qe1 {[%clk 0:02:26.7]} 12... Nc6 {[%clk
0:02:43.1]} 13. Ne5 {[%clk 0:02:25.2]} 13... Nd7 {[%clk 0:02:28]} 14. Bxe7
{[%clk 0:02:22.6]} 14... Qxe7 {[%clk 0:02:28.9]} 15. b3 {[%clk 0:02:19.1]} 15...
cxb3 {[%clk 0:02:24.4]} 16. axb3 {[%clk 0:02:18.6]} 16... a6 {[%clk 0:02:00.6]}
17. Nd1 {[%clk 0:02:01.5]} 17... Rc8 {[%clk 0:01:55.7]} 18. c4 {[%clk
0:01:59.3]} 18... Ncxe5 {[%clk 0:01:55.7]} 19. fxe5 {[%clk 0:01:57.3]} 19...
dxc4 {[%clk 0:01:56]} 20. bxc4 {[%clk 0:01:56.8]} 20... Rxc4 {[%clk 0:01:56.7]}
21. Nf2 {[%clk 0:01:55.1]} 21... Qh4 {[%clk 0:01:51.1]} 22. h3 {[%clk
0:01:54.7]} 22... Qg3 {[%clk 0:01:50]} 23. Qe2 {[%clk 0:01:52.7]} 23... Rc3
{[%clk 0:01:46.5]} 24. Rae1 {[%clk 0:01:47]} 24... f5 {[%clk 0:01:41.1]} 25. Qb2
{[%clk 0:01:24.8]} 25... Rxe3 {[%clk 0:01:37.5]} 26. Qxb7 {[%clk 0:01:19.3]}
26... Ke7 {[%clk 0:01:31.2]} 27. Qb4+ {[%clk 0:01:11.2]} 27... Kf7 {[%clk
0:01:29.5]} 28. Qd6 {[%clk 0:01:12.1]} 28... Rd8 {[%clk 0:01:24.4]} 29. d5
{[%clk 0:01:07.7]} 29... Qxe5 {[%clk 0:01:22.9]} 30. Qb4 {[%clk 0:00:33.1]}
30... exd5 {[%clk 0:01:09.2]} 31. Ng4 {[%clk 0:00:32]} 31... Qc3 {[%clk
0:01:01.6]} 32. Qxc3 {[%clk 0:00:10.6]} 32... Rxc3 {[%clk 0:01:01.1]} 33. Ne5+
{[%clk 0:00:09.1]} 33... Nxe5 {[%clk 0:01:01.2]} 34. Rxe5 {[%clk 0:00:10]} 34...
d4 {[%clk 0:01:01.9]} 35. Rfe1 {[%clk 0:00:10.2]} 35... d3 {[%clk 0:01:00.5]}
36. Re7+ {[%clk 0:00:10.3]} 36... Kf8 {[%clk 0:01:00.1]} 37. Rb7 {[%clk
0:00:08.7]} 37... d2 {[%clk 0:00:59.3]} 38. Rd1 {[%clk 0:00:09.2]} 38... Rc1
{[%clk 0:00:59.4]} 39. Rb1 {[%clk 0:00:08.7]} 39... Rxb1 {[%clk 0:00:59.7]} 40.
Rxb1 {[%clk 0:00:08.1]} 40... d1=Q+ {[%clk 0:01:00.6]} 0-1